bitfinex/quotes_BTCUSD_20240723
["timestamp","ask_amount","ask_price","bid_price","bid_amount"]
[1721756743200,4e-05,66042.0,66041.0,1.43807299]
[1721756743701,4e-05,66042.0,66041.0,1.43307299]
[1721756743888,0.00104,66042.0,66041.0,1.0418536]
[1721756744581,0.00104,66042.0,66041.0,1.0368536]
[1721756744748,0.00104,66042.0,66041.0,1.03684906]
[1721756744979,0.00104,66042.0,66041.0,1.04884906]
[1721756745182,0.00104,66042.0,66041.0,1.03684906]
[1721756745385,0.00104,66042.0,66041.0,1.03776206]
[1721756745585,4e-05,66042.0,66041.0,1.03076206]
[1721756745792,4e-05,66042.0,66041.0,1.09594372]
[1721756746201,4e-05,66042.0,66041.0,1.39878572]
[1721756746613,0.00104,66042.0,66041.0,1.40978572]
[1721756747265,0.00104,66042.0,66041.0,0.80410172]
[1721756747523,0.00204,66042.0,66041.0,0.45007806]
[1721756747756,0.00204,66042.0,66041.0,0.62719591]
[1721756747979,0.00104,66042.0,66041.0,0.73891799]
[1721756748181,0.00104,66042.0,66041.0,0.73991799]
[1721756748406,0.00204,66042.0,66041.0,0.15163508]
[1721756748684,0.00204,66042.0,66041.0,0.13963508]
[1721756748685,0.00806732,66042.0,66041.0,0.13963508]
[1721756748978,0.15948532,66042.0,66041.0,0.13963508]
[1721756749638,0.15948532,66042.0,66041.0,0.12663508]
[1721756749639,0.46132232,66042.0,66041.0,0.12663508]
[1721756750079,1.13479632,66042.0,66041.0,0.14963508]
[1721756750281,0.90785932,66042.0,66041.0,0.14963508]
[1721756751067,0.90685932,66042.0,66041.0,0.13765586]
[1721756751302,0.90685932,66042.0,66041.0,0.14165586]
[1721756751477,0.90585932,66042.0,66041.0,0.13065586]
[1721756752756,0.90585932,66042.0,66041.0,0.13265586]
[1721756754862,0.46132232,66042.0,66041.0,0.13265586]
[1721756755335,0.76415932,66042.0,66041.0,0.13265586]
[1721756756844,0.00706732,66042.0,66041.0,0.13265586]
[1721756757007,0.46132232,66042.0,66041.0,0.13265586]
[1721756757417,0.46132232,66042.0,66041.0,0.006913]
[1721756757624,0.15848532,66042.0,66041.0,0.13265234]
[1721756757959,0.00706732,66042.0,66041.0,1.10297725]
[1721756758414,4e-05,66042.0,66041.0,1.10297725]
[1721756760441,4e-05,66042.0,66041.0,1.27394808]
[1721756760671,4e-05,66042.0,66041.0,1.27392734]
[1721756760901,4e-05,66042.0,66041.0,1.42088999]
[1721756761226,4e-05,66042.0,66041.0,1.72373199]
[1721756761428,4e-05,66042.0,66041.0,1.42088999]
[1721756761626,4e-05,66042.0,66041.0,1.27392734]
[1721756762583,4e-05,66042.0,66041.0,1.57676934]
[1721756763192,4e-05,66042.0,66041.0,1.72676934]
[1721756763362,4e-05,66042.0,66041.0,2.20651134]
[1721756763563,4e-05,66042.0,66041.0,2.93051134]
[1721756763816,4e-05,66042.0,66041.0,3.07925078]
[1721756763962,0.00204,66042.0,66041.0,3.10425078]
[1721756764165,0.00104,66042.0,66041.0,3.17225078]
[1721756764366,4e-05,66042.0,66041.0,3.79250674]
[1721756764566,0.00104,66042.0,66041.0,3.40840878]
[1721756764822,0.00204,66042.0,66041.0,1.76044613]
[1721756765567,0.00204,66042.0,66041.0,1.75993262]
[1721756765989,0.00104,66042.0,66041.0,1.74693262]
[1721756766191,0.00104,66042.0,66041.0,1.95789527]
[1721756766401,0.00204,66042.0,66041.0,1.97189527]
[1721756766591,0.00104,66042.0,66041.0,2.26073727]
[1721756766767,0.00104,66042.0,66041.0,2.37473727]
[1721756767159,0.00104,66042.0,66041.0,2.37635824]
[1721756767334,0.00104,66042.0,66041.0,2.41967144]
[1721756767540,0.00104,66042.0,66041.0,1.92151624]
[1721756767755,0.00104,66042.0,66041.0,0.61460659]
[1721756767968,0.00104,66042.0,66041.0,0.62292759]
[1721756768171,0.00104,66042.0,66041.0,0.30163288]
[1721756768400,0.152458,66042.0,66041.0,0.30163288]
[1721756768601,0.152458,66042.0,66041.0,0.15461297]
[1721756768602,0.00806083,66042.0,66041.0,0.15461297]
[1721756768801,0.00806083,66042.0,66041.0,0.30603397]
[1721756769027,0.00806083,66042.0,66041.0,1.05873788]
[1721756769232,0.00806083,66042.0,66041.0,1.03073788]
[1721756769233,0.00706083,66042.0,66041.0,1.03073788]
[1721756769342,4e-05,66042.0,66041.0,1.13661167]
[1721756769543,0.00104,66042.0,66041.0,1.14761167]
[1721756769776,4e-05,66042.0,66041.0,1.14061167]
[1721756769972,4e-05,66042.0,66041.0,1.43945367]
[1721756770222,4e-05,66042.0,66041.0,1.6921191]
[1721756770400,0.00204,66042.0,66041.0,1.7784191]
[1721756770602,0.00204,66042.0,66041.0,1.67254531]
[1721756770780,0.00204,66042.0,66041.0,1.22020331]
[1721756771969,0.00204,66042.0,66041.0,1.52304531]
[1721756773354,0.00204,66042.0,66041.0,1.52260609]
[1721756773521,0.00204,66042.0,66041.0,1.53159891]
[1721756773721,0.00204,66042.0,66041.0,1.67856156]
[1721756774507,0.00204,66042.0,66041.0,1.72856156]
[1721756774720,0.00204,66042.0,66041.0,1.67856156]
[1721756775523,0.00204,66042.0,66041.0,2.03140356]
[1721756775725,0.00204,66042.0,66041.0,1.72856156]
[1721756775924,0.00204,66042.0,66041.0,1.67856156]
[1721756776385,0.00204,66042.0,66041.0,1.53159891]
[1721756776720,0.00204,66042.0,66041.0,1.53181174]
[1721756779907,0.00204,66042.0,66041.0,1.53178895]
[1721756780129,0.00204,66042.0,66041.0,1.58178895]
[1721756780528,0.00204,66042.0,66041.0,1.53178895]
[1721756780684,0.00204,66042.0,66041.0,1.6787516]
[1721756781101,0.00104,66042.0,66041.0,1.6677516]
[1721756781481,0.00204,66042.0,66041.0,1.6817516]
[1721756781927,0.00204,66042.0,66041.0,1.7317516]
[1721756782148,0.00204,66042.0,66041.0,1.7227516]
[1721756782354,0.00104,66042.0,66041.0,1.7227516]
[1721756782507,0.00104,66042.0,66041.0,2.0395936]
[1721756782722,0.00104,66042.0,66041.0,1.7367516]
[1721756782946,0.00104,66042.0,66041.0,1.6867516]
[1721756786253,0.00104,66042.0,66041.0,1.39183538]
[1721756786453,0.00104,66042.0,66041.0,1.68668008]
[1721756788303,0.00083,66051.0,66050.0,0.45496977]
[1721756788649,0.00083,66051.0,66050.0,0.77637468]
[1721756788851,0.00083,66051.0,66050.0,0.32217468]
[1721756789201,0.00083,66051.0,66050.0,0.27349668]
[1721756789202,0.22534005,66051.0,66050.0,0.27349668]
[1721756789377,0.07394205,66051.0,66050.0,0.27349668]
[1721756789583,0.22534005,66051.0,66050.0,0.13148273]
[1721756789812,0.98542147,66051.0,66050.0,0.13148273]
[1721756790010,1.64101347,66051.0,66050.0,0.00576977]
[1721756790209,1.73166572,66051.0,66050.0,0.01276977]
[1721756790412,1.85432771,66051.0,66050.0,0.01276977]
[1721756790566,1.84101239,66051.0,66050.0,0.01276977]
[1721756790995,1.84101239,66051.0,66041.0,0.000913]
[1721756790996,1.51276492,66042.0,66041.0,0.000913]
[1721756791215,1.75167533,66042.0,66041.0,0.000913]
[1721756791404,1.87202494,66042.0,66041.0,0.000913]
[1721756791667,1.85867828,66042.0,66041.0,0.000913]
[1721756791867,1.23582245,66042.0,66041.0,0.000913]
[1721756792069,1.32648166,66042.0,66041.0,0.000913]
[1721756792315,1.23582245,66042.0,66041.0,0.000913]
[1721756792526,1.30380035,66042.0,66041.0,0.000913]
[1721756792849,0.62663693,66042.0,66041.0,0.001913]
[1721756793067,0.00900403,66042.0,66041.0,0.001913]
[1721756793329,0.00700403,66042.0,66041.0,0.15712235]
[1721756793537,0.00900403,66042.0,66041.0,0.27906745]
[1721756793735,0.002,66042.0,66041.0,0.12664645]
[1721756793914,0.16240098,66042.0,66041.0,0.12764645]
[1721756794118,0.16240098,66042.0,66041.0,0.12864645]
[1721756794119,0.16440098,66042.0,66041.0,0.12864645]
[1721756794314,0.16040098,66042.0,66041.0,0.12664645]
[1721756794674,0.46323798,66042.0,66041.0,0.12664645]
[1721756794872,0.16040098,66042.0,66041.0,0.13264645]
[1721756795082,0.00898298,66042.0,66041.0,0.28406745]
[1721756795270,0.00898298,66042.0,66041.0,0.13264645]
[1721756795477,0.00898298,66042.0,66041.0,0.28406745]
[1721756795596,0.00898298,66042.0,66041.0,0.162334]
[1721756795972,0.00898298,66042.0,66041.0,0.13664338]
[1721756796603,0.16040098,66042.0,66041.0,0.13664338]
[1721756796962,0.00898298,66042.0,66041.0,0.13664338]
[1721756797162,0.00898298,66042.0,66041.0,0.13064338]
[1721756797378,0.01098298,66042.0,66041.0,0.13064338]
[1721756797955,0.16040098,66042.0,66041.0,0.13064338]
[1721756798160,0.00898298,66042.0,66041.0,0.28206438]
[1721756798359,0.00898298,66042.0,66041.0,0.73192629]
[1721756798601,0.002,66042.0,66041.0,1.03476829]
[1721756798949,0.002,66042.0,66041.0,1.03476775]
[1721756799156,0.002,66042.0,66041.0,0.73192575]
[1721756799356,0.00899001,66042.0,66041.0,1.03976775]
[1721756799574,0.002,66042.0,66041.0,0.73692575]
[1721756799796,0.002,66042.0,66041.0,1.03976775]
[1721756800354,0.002,66042.0,66041.0,0.73692575]
[1721756800576,0.002,66042.0,66041.0,0.28266275]
[1721756800775,0.00899296,66042.0,66041.0,0.43408375]
[1721756800983,0.00899296,66042.0,66041.0,0.28266275]
[1721756801792,0.00899296,66042.0,66041.0,0.43408375]
[1721756801986,0.00899296,66042.0,66041.0,0.15693291]
[1721756802192,0.00899296,66042.0,66041.0,0.28266715]
[1721756802390,0.00899296,66042.0,66041.0,0.27766715]
[1721756802593,0.00699296,66042.0,66041.0,0.27766715]
[1721756803083,0.151412,66045.0,66041.0,0.43308815]
[1721756803287,0.0769,66047.0,66042.0,0.12573424]
[1721756803500,0.151413,66045.0,66041.0,0.30435291]
[1721756803700,0.454229,66046.0,66042.0,0.12573369]
[1721756803907,0.454229,66046.0,66042.0,0.151418]
[1721756804117,0.15141,66046.0,66042.0,0.151418]
[1721756804723,0.15141,66046.0,66043.0,0.151416]
[1721756804941,0.0769,66047.0,66042.0,0.302836]
[1721756805086,0.0769,66047.0,66043.0,0.27714674]
[1721756805087,0.228308,66047.0,66043.0,0.27714674]
[1721756805279,0.0769,66047.0,66044.0,0.151413]
[1721756805479,0.228307,66047.0,66044.0,0.151413]
[1721756807579,0.228307,66047.0,66044.0,0.152413]
[1721756808383,0.228307,66047.0,66044.0,0.001]
[1721756808565,0.151411,66045.0,66044.0,0.001]
[1721756808776,0.151409,66046.0,66044.0,0.12673018]
[1721756808978,0.0769,66047.0,66044.0,0.001]
[1721756809175,0.0769,66047.0,66045.0,0.1257302]
[1721756809376,0.0769,66047.0,66044.0,0.152413]
[1721756809576,0.0769,66047.0,66045.0,0.12573018]
[1721756809830,0.0769,66047.0,66044.0,0.152413]
[1721756809979,0.0769,66047.0,66045.0,0.27714118]
[1721756810181,0.0769,66047.0,66044.0,0.152413]
[1721756810482,0.0769,66047.0,66045.0,0.27714118]
[1721756810863,0.0769,66047.0,66046.0,0.151409]
[1721756811120,0.0769,66047.0,66045.0,0.454233]
[1721756811330,0.0769,66047.0,66046.0,0.12572899]
[1721756811942,0.0769,66047.0,66046.0,0.12572892]
[1721756812932,0.0769,66047.0,66046.0,0.27713792]
[1721756813280,0.0769,66047.0,66046.0,0.12572892]
[1721756813710,0.228307,66047.0,66046.0,0.12572892]
[1721756814043,0.0769,66047.0,66046.0,0.12572892]
[1721756814294,0.228307,66047.0,66046.0,0.12572892]
[1721756814665,0.0769,66047.0,66046.0,0.12572892]
[1721756814883,0.151406,66048.0,66046.0,0.12572892]
[1721756815128,0.151406,66048.0,66045.0,0.151411]
[1721756815259,0.151406,66048.0,66046.0,0.12672728]
[1721756815462,0.454216,66048.0,66047.0,0.12572728]
[1721756816069,0.151406,66048.0,66047.0,0.12572728]
[1721756816278,0.37712442,66050.0,66047.0,0.12572728]
[1721756816279,0.07431942,66050.0,66047.0,0.12572728]
[1721756816474,0.151404,66049.0,66048.0,0.12572728]
[1721756816688,0.00083,66050.0,66049.0,0.757012]
[1721756816893,0.00083,66050.0,66049.0,1.33256419]
[1721756817516,0.00083,66050.0,66049.0,1.50214641]
[1721756818270,0.00083,66050.0,66049.0,1.33206419]
[1721756819246,0.00083,66050.0,66049.0,1.49102684]
[1721756819701,0.00083,66050.0,66049.0,1.67302115]
[1721756820719,0.00083,66050.0,66049.0,1.68234788]
[1721756820889,0.00083,66050.0,66049.0,1.36539092]
[1721756821514,0.00083,66050.0,66049.0,1.23966364]
[1721756821769,0.00083,66050.0,66049.0,1.36536438]
[1721756821906,0.00083,66050.0,66049.0,0.75042765]
[1721756822482,0.00083,66050.0,66049.0,1.05323265]
[1721756823291,0.00083,66050.0,66049.0,1.35603765]
[1721756824580,0.00083,66050.0,66049.0,1.52568506]
[1721756824787,0.00083,66050.0,66049.0,1.52568145]
[1721756825192,0.00083,66050.0,66049.0,1.35603406]
[1721756825387,0.00083,66050.0,66049.0,1.42614708]
[1721756825690,0.00083,66050.0,66049.0,1.23033691]
[1721756825906,0.00083,66050.0,66049.0,1.3560339]
[1721756826897,0.00083,66050.0,66049.0,1.0532289]
[1721756828000,0.00083,66050.0,66049.0,0.92753191]
[1721756828197,0.00083,66050.0,66049.0,0.44762564]
[1721756828755,0.00083,66050.0,66049.0,0.75043064]
[1721756829016,0.00740627,66050.0,66049.0,0.75043064]
[1721756829188,0.76440627,66050.0,66049.0,0.14970373]
[1721756829731,1.06720627,66050.0,66049.0,0.024]
[1721756829955,0.151418,66042.0,66041.0,0.000913]
[1721756830198,0.151418,66042.0,66041.0,0.12664083]
[1721756830402,0.46082842,66042.0,66041.0,0.12664083]
[1721756831073,0.15799142,66042.0,66041.0,0.12664083]
[1721756831290,0.15799142,66042.0,66041.0,0.12664176]
[1721756831522,0.00657342,66042.0,66041.0,0.12664176]
[1721756831924,0.15799142,66042.0,66041.0,0.12664176]
[1721756832160,0.151418,66042.0,66041.0,0.12664176]
[1721756832398,0.46082842,66042.0,66041.0,0.12664176]
[1721756832661,0.15799142,66042.0,66041.0,0.12664176]
[1721756832930,0.15799142,66042.0,66041.0,1.17696667]
[1721756832931,0.00657342,66042.0,66041.0,1.17696667]
[1721756833127,0.00657342,66042.0,66041.0,2.00209797]
[1721756833256,0.00083,66050.0,66049.0,0.454207]
[1721756833461,0.00083,66050.0,66049.0,1.02976067]
[1721756834289,0.00083,66050.0,66049.0,1.02973809]
[1721756834493,0.00083,66050.0,66049.0,1.03273809]
[1721756835024,0.00083,66050.0,66049.0,1.33554309]
[1721756835240,0.00083,66050.0,66049.0,1.03273809]
[1721756836144,0.00083,66050.0,66049.0,1.03573809]
[1721756837601,0.00083,66050.0,66049.0,1.03573051]
[1721756839198,0.00083,66050.0,66049.0,1.40998411]
[1721756839390,0.00083,66050.0,66049.0,1.10717911]
[1721756839590,0.00083,66050.0,66049.0,1.50989889]
[1721756839803,0.00083,66050.0,66049.0,1.90459889]
[1721756840000,0.00083,66050.0,66049.0,2.15740389]
[1721756840665,0.00083,66050.0,66049.0,2.15413171]
[1721756841281,0.00083,66050.0,66049.0,2.30413171]
[1721756841510,0.00083,66050.0,66049.0,2.87559436]
[1721756841893,0.00083,66050.0,66049.0,2.88959436]
[1721756842128,0.00083,66050.0,66049.0,3.72959436]
[1721756842347,0.00083,66050.0,66049.0,5.24759436]
[1721756842554,0.00083,66050.0,66049.0,3.93904471]
[1721756843004,0.00083,66050.0,66049.0,3.95304471]
[1721756843419,0.00083,66050.0,66049.0,3.92704471]
[1721756843636,0.00083,66050.0,66049.0,4.73704471]
[1721756843901,0.00083,66050.0,66049.0,5.21484767]
[1721756844127,0.4688,66073.0,66072.0,0.45405]
[1721756844326,0.00083,66074.0,66073.0,0.756737]
[1721756844532,0.00083,66074.0,66073.0,1.20645191]
[1721756844725,0.00083,66074.0,66073.0,1.33212545]
[1721756844945,0.00083,66074.0,66073.0,1.471508]
[1721756846023,0.00083,66074.0,66073.0,2.13695722]
[1721756846622,0.00083,66074.0,66073.0,2.1306928]
[1721756846849,0.00083,66074.0,66073.0,2.08791467]
[1721756847180,0.00083,66074.0,66073.0,2.10191467]
[1721756847596,0.00083,66074.0,66073.0,2.56360967]
[1721756847723,0.00087,66074.0,66073.0,2.25191467]
[1721756847937,0.00087,66074.0,66073.0,2.26591467]
[1721756848140,0.00087,66074.0,66073.0,2.25091467]
[1721756848346,0.00087,66074.0,66073.0,2.25994582]
[1721756848567,0.00087,66074.0,66073.0,2.27394582]
[1721756849783,0.00087,66074.0,66073.0,2.25994582]
[1721756850080,0.00087,66074.0,66073.0,2.24631176]
[1721756850343,0.00087,66074.0,66073.0,2.27431176]
[1721756850732,0.00087,66074.0,66073.0,2.26031176]
[1721756850901,0.00087,66074.0,66073.0,2.08492921]
[1721756851112,0.00087,66074.0,66073.0,1.76823421]
[1721756851308,0.00087,66074.0,66073.0,1.45512097]
[1721756851510,0.00087,66074.0,66073.0,1.46912097]
[1721756851732,0.00087,66074.0,66073.0,0.76373097]
[1721756851930,0.00087,66074.0,66073.0,1.21338862]
[1721756852187,0.00087,66074.0,66073.0,1.51608362]
[1721756852390,0.00087,66074.0,66073.0,1.50208362]
[1721756852516,0.00087,66074.0,66073.0,1.20435747]
[1721756852724,0.00087,66074.0,66073.0,0.75469982]
[1721756852943,0.00087,66074.0,66073.0,0.74069982]
[1721756853155,0.00754557,66074.0,66073.0,0.29836691]
[1721756853350,0.00087,66074.0,66073.0,1.05541709]
[1721756853706,0.00087,66074.0,66073.0,1.1669588]
[1721756853897,0.00087,66074.0,66073.0,0.8642638]
[1721756854100,0.00087,66074.0,66073.0,0.8762638]
[1721756854308,0.152215,66074.0,66073.0,0.29668009]
[1721756854519,0.599205,66074.0,66073.0,0.14966018]
[1721756854718,1.21126057,66074.0,66073.0,0.024]
[1721756855256,1.21126057,66074.0,66073.0,0.012]
[1721756855761,1.21126057,66074.0,66073.0,0.014]
[1721756856284,1.21126057,66074.0,66058.0,0.302761]
[1721756856285,0.151366,66065.0,66059.0,0.302756]
[1721756856490,0.151364,66066.0,66062.0,0.151372]
[1721756856680,0.00665599,66064.0,66063.0,0.14701991]
[1721756856878,0.151368,66064.0,66063.0,0.14701991]
[1721756857093,0.15802399,66064.0,66063.0,0.14701991]
[1721756857533,0.151378,66060.0,66056.0,0.151386]
[1721756857729,0.151378,66060.0,66050.0,0.30690018]
[1721756857730,0.151382,66058.0,66057.0,0.27271076]
[1721756857918,0.21168,66059.0,66057.0,0.27271076]
[1721756858125,0.15803799,66058.0,66057.0,0.14701991]
[1721756858359,0.00665599,66058.0,66057.0,0.27271205]
[1721756858551,0.15803799,66058.0,66057.0,0.27271205]
[1721756859343,0.00665599,66058.0,66057.0,0.27271205]
[1721756859546,0.00665599,66058.0,66057.0,0.27271425]
[1721756859750,0.00665599,66058.0,66057.0,0.2947143]
[1721756860154,0.46080199,66058.0,66057.0,0.2947143]
[1721756860329,1.06632999,66058.0,66057.0,0.022]
[1721756860535,0.454194,66051.0,66050.0,0.00410118]
[1721756860732,0.454194,66051.0,66050.0,0.27683074]
[1721756860939,0.46080236,66051.0,66050.0,0.00410118]
[1721756861141,0.00660836,66051.0,66050.0,0.00410118]
[1721756861801,0.76359836,66051.0,66050.0,0.00410118]
[1721756861972,0.46080236,66051.0,66050.0,0.00410118]
[1721756862365,0.46080236,66051.0,66050.0,0.1298115]
[1721756862571,0.76359836,66051.0,66050.0,0.1298115]
[1721756862862,0.54320236,66051.0,66050.0,0.12981217]
[1721756863136,0.54320236,66051.0,66050.0,0.00410118]
[1721756863378,0.08904836,66051.0,66050.0,0.00410118]
[1721756863622,0.00664836,66051.0,66050.0,0.73103287]
[1721756863842,0.00664836,66051.0,66050.0,1.13830806]
[1721756864036,0.00104,66051.0,66050.0,1.13830806]
[1721756866584,4e-05,66051.0,66050.0,0.74402676]
[1721756867268,0.00663023,66051.0,66050.0,0.74402676]
[1721756867483,4e-05,66051.0,66050.0,0.74402676]
[1721756867831,0.00663023,66051.0,66050.0,1.18278734]
[1721756868167,0.00663023,66051.0,66050.0,1.32428734]
[1721756868168,4e-05,66051.0,66050.0,1.32428734]
[1721756868769,4e-05,66051.0,66050.0,0.74402676]
[1721756868992,4e-05,66051.0,66050.0,0.28982676]
[1721756869193,0.596434,66051.0,66050.0,0.14280685]
[1721756869398,0.60302303,66051.0,66050.0,0.01710118]
[1721756869602,0.90581903,66051.0,66050.0,0.01710118]
[1721756870015,0.90581903,66051.0,66050.0,0.01110118]
[1721756870497,0.90681903,66051.0,66050.0,0.01110118]
[1721756870944,0.90581903,66051.0,66050.0,0.01110118]
[1721756871344,0.90581903,66051.0,66050.0,0.00410118]
[1721756871598,1.20861503,66051.0,66050.0,0.00410118]
[1721756871769,0.90681903,66051.0,66050.0,0.00410118]
[1721756871977,1.20961503,66051.0,66050.0,0.00410118]
[1721756872349,1.25961503,66051.0,66050.0,0.00410118]
[1721756872706,1.35961395,66051.0,66050.0,0.00410118]
[1721756873493,1.20861503,66051.0,66050.0,0.00410118]
[1721756874079,1.20961503,66051.0,66050.0,0.00510118]
[1721756874299,1.20961503,66051.0,66050.0,0.00610118]
[1721756874541,1.20861503,66051.0,66050.0,0.00510118]
[1721756874772,1.20961503,66051.0,66050.0,0.00610118]
[1721756874974,1.20961503,66051.0,66050.0,0.00701418]
[1721756875401,1.21044503,66051.0,66050.0,0.00701418]
[1721756876293,1.31044395,66051.0,66050.0,0.00601418]
[1721756877196,1.31044395,66051.0,66050.0,0.00701418]
[1721756879069,2.11305586,66051.0,66050.0,0.00701418]
[1721756879298,1.83325986,66051.0,66050.0,0.00701418]
[1721756879462,1.93325986,66051.0,66050.0,0.00701418]
[1721756880566,2.39555586,66051.0,66050.0,0.00701418]
[1721756882520,2.39455586,66051.0,66050.0,0.00601418]
[1721756882933,3.17855586,66051.0,66050.0,0.00601418]
[1721756883137,2.10575986,66051.0,66050.0,0.00601418]
[1721756883394,2.10575986,66051.0,66050.0,0.00701418]
[1721756883395,2.95575986,66051.0,66050.0,0.00701418]
[1721756883965,3.25855586,66051.0,66050.0,0.00701418]
[1721756884324,3.20855586,66051.0,66050.0,0.00701418]
[1721756884905,1.95760192,66042.0,66041.0,0.000913]
[1721756885065,2.33761125,66042.0,66041.0,0.000913]
[1721756885275,2.4680447,66042.0,66041.0,0.000913]
[1721756886045,2.4820447,66042.0,66041.0,0.000913]
[1721756886446,2.4680447,66042.0,66041.0,0.000913]
[1721756887019,2.4820447,66042.0,66041.0,0.000913]
[1721756887987,2.4960447,66042.0,66041.0,0.000913]
[1721756888216,2.42255528,66042.0,66041.0,0.000913]
[1721756889441,2.72539228,66042.0,66041.0,0.000913]
[1721756890518,2.73473704,66042.0,66041.0,0.000913]
[1721756890737,4.29473704,66042.0,66041.0,1e-06]
[1721756890946,4.34317983,66042.0,66041.0,1e-06]
[1721756891145,4.29473704,66042.0,66041.0,1e-06]
[1721756892124,4.28073704,66042.0,66041.0,1e-06]
[1721756892337,1.060234,66023.0,66022.0,0.000913]
[1721756892688,1.0666744,66023.0,66022.0,0.000913]
[1721756893548,1.0786744,66023.0,66022.0,0.000913]
[1721756894020,1.0666744,66023.0,66022.0,0.000913]
[1721756894173,1.0746744,66023.0,66022.0,0.000913]
[1721756894375,1.17467332,66023.0,66022.0,0.000913]
[1721756894983,1.0746744,66023.0,66022.0,0.000913]
[1721756895189,1.0836744,66023.0,66022.0,0.000913]
[1721756895372,1.0746744,66023.0,66022.0,0.000913]
[1721756895572,1.0666744,66023.0,66022.0,0.000913]
[1721756895807,1.0886744,66023.0,66022.0,0.000913]
[1721756896017,1.18867332,66023.0,66022.0,0.000913]
[1721756896214,1.17667332,66023.0,66022.0,0.000913]
[1721756896423,1.0746744,66023.0,66022.0,0.000913]
[1721756896621,1.0816744,66023.0,66022.0,0.000913]
[1721756896796,1.0736744,66023.0,66022.0,0.000913]
[1721756897001,1.0857144,66023.0,66022.0,0.000913]
[1721756897217,1.0787144,66023.0,66022.0,0.000913]
[1721756897418,1.0887144,66023.0,66022.0,0.000913]
[1721756898522,1.0767144,66023.0,66022.0,0.000913]
[1721756898948,1.0757144,66023.0,66022.0,0.000913]
[1721756899187,1.0837144,66023.0,66022.0,0.000913]
[1721756899372,0.4778664,66023.0,66022.0,0.000913]
[1721756899593,0.7727904,66023.0,66022.0,0.000913]
[1721756899824,1.20999344,66023.0,66022.0,0.000913]
[1721756899956,1.21699344,66023.0,66022.0,0.000913]
[1721756900301,1.15899344,66023.0,66022.0,0.000913]
[1721756900497,1.0817144,66023.0,66022.0,0.000913]
[1721756900697,1.0747144,66023.0,66022.0,0.000913]
[1721756901881,1.0667144,66023.0,66022.0,0.000913]
[1721756902082,1.0887144,66023.0,66022.0,0.000913]
[1721756902582,1.44133323,66023.0,66022.0,0.000913]
[1721756902782,1.93795723,66023.0,66022.0,0.000913]
[1721756903008,1.94495723,66023.0,66022.0,0.000913]
[1721756903224,1.93695723,66023.0,66022.0,0.000913]
[1721756903452,1.94195723,66023.0,66022.0,0.000913]
[1721756903704,3.21138123,66023.0,66022.0,0.000913]
[1721756903909,3.20938123,66023.0,66022.0,0.000913]
[1721756904330,3.51230523,66023.0,66022.0,0.000913]
[1721756904588,3.56216189,66023.0,66022.0,1e-06]
[1721756904786,3.58516553,66023.0,66022.0,1e-06]
[1721756905174,3.58716553,66023.0,66022.0,1e-06]
[1721756905404,1.65478992,66007.0,66006.0,0.009372]
[1721756905616,2.28730783,66007.0,66006.0,0.009372]
[1721756905739,3.00466027,66007.0,66006.0,0.009372]
[1721756905962,2.09166227,66007.0,66006.0,0.009372]
[1721756906357,1.31486535,66007.0,66006.0,0.009372]
[1721756906563,1.36486535,66007.0,66006.0,0.009372]
[1721756906798,1.16784544,66007.0,66006.0,0.009372]
[1721756906964,1.44286535,66007.0,66006.0,0.009372]
[1721756907202,1.49286427,66007.0,66006.0,0.009372]
[1721756907528,1.81886227,66007.0,66006.0,0.009372]
[1721756907728,1.51586427,66007.0,66006.0,0.009372]
[1721756907974,1.71886335,66007.0,66006.0,0.009372]
[1721756908186,1.40186535,66007.0,66006.0,0.009372]
[1721756908379,1.38808753,66007.0,66006.0,0.009372]
[1721756908579,1.49808645,66007.0,66006.0,0.009372]
[1721756908987,1.49708645,66007.0,66006.0,0.009372]
[1721756909192,1.82608445,66007.0,66006.0,0.009372]
[1721756909594,1.81408445,66007.0,66006.0,0.009372]
[1721756909754,1.80008445,66007.0,66006.0,0.009372]
[1721756909949,1.82808445,66007.0,66006.0,0.009372]
[1721756910227,2.27658245,66007.0,66006.0,0.009372]
[1721756910399,2.41988245,66007.0,66006.0,0.009372]
[1721756910622,2.43388245,66007.0,66006.0,0.009372]
[1721756911156,3.15988245,66007.0,66006.0,0.009372]
[1721756911373,3.24988245,66007.0,66006.0,0.009372]
[1721756911548,3.26388245,66007.0,66006.0,0.009372]
[1721756911953,2.41988245,66007.0,66006.0,0.009372]
[1721756912150,2.40588245,66007.0,66006.0,0.009372]
[1721756912365,2.41988245,66007.0,66006.0,0.009372]
[1721756912568,2.43388245,66007.0,66006.0,0.009372]
[1721756913102,2.43388245,66007.0,65991.0,0.002]
[1721756913103,1.413801,65992.0,65991.0,0.002]
[1721756913272,1.56082091,65992.0,65991.0,0.002]
[1721756913469,1.5680873,65992.0,65991.0,0.002]
[1721756913896,1.5180873,65992.0,65991.0,0.002]
[1721756914718,1.5680873,65992.0,65991.0,0.002]
[1721756915404,1.5770873,65992.0,65991.0,0.002]
[1721756915723,1.5870873,65992.0,65991.0,0.002]
[1721756916652,1.68708622,65992.0,65991.0,0.002]
[1721756917258,1.59635112,65992.0,65991.0,0.002]
[1721756917458,1.69635004,65992.0,65991.0,0.002]
[1721756919062,1.060797,65988.0,65987.0,0.000913]
[1721756919257,1.06806227,65988.0,65987.0,0.000913]
[1721756920253,1.07406227,65988.0,65987.0,0.000913]
[1721756920913,1.07906227,65988.0,65987.0,0.000913]
[1721756921859,1.6791661,65988.0,65987.0,0.000913]
[1721756922063,1.8021661,65988.0,65987.0,0.000913]
[1721756922657,1.7961661,65988.0,65987.0,0.000913]
[1721756923079,1.8101661,65988.0,65987.0,0.000913]
[1721756923397,2.0992511,65988.0,65987.0,0.000913]
[1721756923567,2.9937511,65988.0,65987.0,0.000913]
[1721756923755,3.0687511,65988.0,65987.0,0.000913]
[1721756924078,3.3858361,65988.0,65987.0,0.000913]
[1721756924476,3.3718361,65988.0,65987.0,0.000913]
[1721756924688,1.81704292,65985.0,65983.0,0.009383]
[1721756924913,2.25378215,65985.0,65983.0,0.009383]
[1721756926281,2.97378215,65985.0,65983.0,0.009383]
[1721756926478,3.10778215,65985.0,65983.0,0.009383]
[1721756926681,3.54828115,65985.0,65983.0,0.009383]
[1721756927106,3.56228115,65985.0,65983.0,0.009383]
[1721756928849,1.00949892,65981.0,65980.0,1e-06]
[1721756929046,1.00949892,65981.0,65951.0,0.002]
[1721756929047,0.30157092,65975.0,65974.0,1e-06]